fUST/lending_fUST_20241203
["ID","MTS","AMOUNT","RATE_DAILY","PERIOD"]
[344026602,1733220640533,-714.87,0.00030136,7]
[344026603,1733220640543,-500.0,0.00030136,7]
[344026604,1733220640552,-500.0,0.00030136,7]
[344026605,1733220640562,-192.530621,0.00030137,120]
[344026606,1733220640572,-640.76,0.00030137,7]
[344026607,1733220640581,-500.0,0.00030138,7]
[344026608,1733220640591,-500.0,0.00030138,7]
[344026609,1733220640600,-500.0,0.00030139,7]
[344026610,1733220640614,-500.0,0.00030139,7]
[344026611,1733220640624,-312.38,0.00030173,30]
[344026612,1733220640634,-3200.0,0.00030223,2]
[344026613,1733220640643,-500.0,0.00030295,7]
[344026614,1733220640653,-3008.81304257,0.000303,7]
[344026615,1733220640663,-2301.61524084,0.000303,7]
[344026616,1733220640672,-152.84,0.000303,31]
[344026617,1733220640682,-152.84,0.000303,31]
[344026618,1733220640691,-152.84,0.000303,31]
[344026619,1733220640700,-152.84,0.000303,31]
[344026620,1733220640710,-152.84,0.000303,31]
[344026621,1733220640720,-152.84,0.000303,31]
[344026622,1733220640729,-152.84,0.000303,31]
[344026623,1733220640739,-152.84,0.000303,31]
[344026624,1733220640748,-152.84,0.000303,31]
[344026625,1733220640757,-152.84,0.000303,31]
[344026626,1733220640766,-152.84,0.000303,31]
[344026627,1733220640779,-152.84,0.000303,31]
[344026628,1733220640788,-152.84,0.000303,31]
[344026629,1733220640797,-152.84,0.000303,31]
[344026630,1733220640807,-152.84,0.000303,31]
[344026631,1733220640816,-152.84,0.000303,31]
[344026632,1733220640827,-2347.03,0.00030409,7]
[344026633,1733220640836,-500.0,0.00030409,7]
[344026634,1733220640845,-714.87,0.0003041,7]
[344026635,1733220640855,-500.0,0.0003041,7]
[344026636,1733220640863,-500.0,0.0003041,7]
[344026637,1733220640873,-340.0,0.00030411,2]
[344026638,1733220640882,-640.76,0.00030411,7]
[344026639,1733220640892,-500.0,0.00030412,7]
[344026640,1733220640901,-500.0,0.00030412,7]
[344026641,1733220640911,-500.0,0.00030413,7]
[344026642,1733220640919,-500.0,0.00030413,7]
[344026643,1733220640929,-500.0,0.00030569,7]
[344026644,1733220640939,-302.58,0.00030673,3]
[344026645,1733220640948,-666.0,0.00030673,2]
[344026646,1733220640958,-9413.34281785,0.00030673,21]
[344026647,1733220640967,-2347.03,0.00030683,7]
[344026648,1733220640976,-500.0,0.00030683,7]
[344026649,1733220640986,-714.87,0.00030684,7]
[344026650,1733220640995,-500.0,0.00030684,7]
[344026651,1733220641004,-500.0,0.00030684,7]
[344026652,1733220641014,-640.76,0.00030685,7]
[344026653,1733220641026,-500.0,0.00030686,7]
[344026654,1733220641036,-500.0,0.00030686,7]
[344026655,1733220641045,-500.0,0.00030687,7]
[344026656,1733220641055,-500.0,0.00030687,7]
[344026657,1733220641064,-2000.0,0.000307,4]
[344026658,1733220641074,-2000.0,0.000307,4]
[344026659,1733220641083,-2000.0,0.000307,4]
[344026660,1733220641092,-151.0,0.00030767,7]
[344026661,1733220641101,-151.0,0.00030767,7]
[344026662,1733220641110,-151.0,0.00030767,7]
[344026663,1733220641120,-256.474156,0.00030767,7]
[344026664,1733220641129,-312.7379187,0.00030767,30]
[344026665,1733220641139,-153.0,0.00030767,30]
[344026666,1733220641148,-153.0,0.00030767,30]
[344026667,1733220641157,-153.0,0.00030767,30]
[344026668,1733220641168,-153.0,0.00030767,30]
[344026669,1733220641177,-153.0,0.00030767,30]
[344026670,1733220641188,-2877.65727749,0.00030772,2]
[344026671,1733220641199,-500.58436627,0.00030773,5]
[344026672,1733220641208,-500.0,0.00030773,5]
[344026673,1733220641217,-151.0,0.00030773,7]
[344026674,1733220641226,-500.0,0.0003078,5]
[344026675,1733220641237,-151.0,0.0003078,7]
[344026676,1733220641246,-153.860128,0.0003078,7]
[344026677,1733220641255,-151.0,0.0003078,7]
[344026678,1733220641265,-151.0,0.0003078,7]
[344026679,1733220641277,-199.213771,0.0003078,7]
[344026680,1733220641286,-151.0,0.0003078,7]
[344026681,1733220641295,-151.0,0.0003078,7]
[344026682,1733220641304,-151.0,0.0003078,7]
[344026683,1733220641314,-173.282549,0.0003078,7]
[344026684,1733220641323,-151.0,0.0003078,7]
[344026685,1733220641332,-151.0,0.0003078,7]
[344026686,1733220641341,-150.2,0.0003078,10]
[344026687,1733220641351,-150.60243365,0.0003078,10]
[344026688,1733220641360,-150.2,0.0003078,10]
[344026689,1733220641369,-150.2,0.0003078,10]
[344026690,1733220641379,-151.0,0.0003078,15]
[344026691,1733220641388,-1021798.62198284,0.00030781,10]
[344026692,1733220641615,-172.08707215,0.00029587,2]
[344026693,1733220641625,-121.38492784,0.00029587,2]
[344026716,1733220643132,-606.55443682,0.00027673,2]
[344026717,1733220643142,-378.61507216,0.00029587,2]
[344026718,1733220643151,-500.0,0.00029587,2]
[344026719,1733220643161,-500.0,0.00029587,2]
[344026720,1733220643171,-234.11581125,0.00029587,2]
[344026721,1733220643181,-500.0,0.00029587,2]
[344026722,1733220643191,-500.0,0.00029587,2]
[344026723,1733220643200,-199.42657879,0.00029587,2]
[344026724,1733220643210,-500.0,0.00029587,2]
[344026725,1733220643220,-500.0,0.00029587,2]
[344026726,1733220643230,-500.0,0.00029587,2]
[344026727,1733220643240,-500.0,0.00029587,2]
[344026728,1733220643251,-500.0,0.00029587,2]
[344026729,1733220643260,-417.09107246,0.00029587,2]
[344026730,1733220643274,-500.0,0.00029587,2]
[344026731,1733220643284,-500.0,0.00029587,2]
[344026732,1733220643294,-500.0,0.00029587,2]
[344026733,1733220643304,-259.50502215,0.00029587,2]
[344026734,1733220643314,-500.0,0.00029587,2]
[344026735,1733220643325,-500.0,0.00029587,2]
[344026736,1733220643335,-730.4959049,0.0002987,2]
[344026737,1733220643345,-310.858,0.0003001,30]
[344026738,1733220643355,-213.56,0.00030771,10]
[344026739,1733220643365,-606.55443682,0.00030781,7]
[344026740,1733220643374,-274031.16553685,0.00030781,10]
[344026741,1733220643391,-606.55443682,0.00030781,7]
[344026742,1733220643400,-38363.1313393,0.00030781,10]
[344026770,1733221072425,178.910669,0.00013973,2]
[344026782,1733221747124,-174.84199826,0.0002,2]
[344026798,1733221832472,-994.42883507,0.0002,2]
[344026800,1733221832484,-90.42838333,0.0002,2]
[344026802,1733221832496,-705.69262307,0.0002,2]
[344026805,1733221832506,-1169.27083333,0.0002,2]
[344026808,1733221832516,-185.478933,0.00024606,2]
[344026810,1733221832525,-300.0,0.00024999,2]
[344026813,1733221832534,-300.0,0.00024999,2]
[344026815,1733221832544,-4630.31969912,0.00025,2]
[344026817,1733221832554,-8432.0,0.00025,2]
[344026818,1733221832564,-177.904759,0.00026112,2]
[344026819,1733221832574,-1784.2973092,0.00026252,2]
[344026820,1733221832587,-165.790203,0.00026489,2]
[344026821,1733221832597,-385.4714249,0.00026615,2]
[344026822,1733221832606,-199.1725,0.00026677,2]
[344026824,1733221832616,-5572.2364688,0.00026757,2]
[344026825,1733221832626,-157.43,0.00026836,2]
[344026826,1733221832635,-420.0,0.00027082,2]
[344026827,1733221832644,-500.0,0.00027397,7]
[344026828,1733221832654,-420.0,0.00027499,2]
[344026829,1733221832663,-500.0,0.00027666,7]
[344026830,1733221832673,-500.0,0.00027666,7]
[344026831,1733221832682,-500.0,0.00027667,7]
[344026832,1733221832692,-1569.27,0.00027667,7]
[344026833,1733221832701,-500.0,0.00027667,7]
[344026835,1733221832711,-500.0,0.00027667,7]
[344026837,1733221832720,-500.0,0.00027667,7]
[344026838,1733221832730,-510.70559669,0.00027668,7]
[344026839,1733221832739,-500.0,0.00027668,7]
[344026840,1733221832748,-500.0,0.00027668,7]
[344026842,1733221832757,-500.0,0.00027668,7]
[344026843,1733221832767,-500.0,0.00027668,7]
[344026844,1733221832776,-500.0,0.00027668,7]
[344026845,1733221832786,-502.78599637,0.00027668,7]
[344026846,1733221832795,-500.0,0.00027668,7]
[344026847,1733221832804,-345.49578889,0.00027668,7]
[344026848,1733221832813,-500.0,0.00027668,7]
[344026849,1733221832823,-500.0,0.0002767,7]
[344026850,1733221832833,-500.0,0.0002767,7]
[344026851,1733221832844,-500.0,0.0002767,7]
[344026852,1733221832853,-1169.27083333,0.00027671,7]
[344026853,1733221832863,-500.0,0.00027672,7]
[344026854,1733221832963,-500.0,0.00027673,7]
[344026855,1733221832975,-500.0,0.0002794,7]
[344026856,1733221832985,-167.22103388,0.0002794,2]
[344026857,1733221832995,-500.0,0.00027941,7]
[344026858,1733221833004,-1569.27,0.00027941,7]
[344026859,1733221833014,-500.0,0.00027941,7]
[344026860,1733221833023,-500.0,0.00027941,7]
[344026861,1733221833033,-500.0,0.00027941,7]
[344026862,1733221833043,-500.0,0.00027942,7]
[344026863,1733221833054,-500.0,0.00027942,7]
[344026864,1733221833064,-500.0,0.00027942,7]
[344026865,1733221833074,-500.0,0.00027944,7]
[344026866,1733221833084,-500.0,0.00027944,7]
[344026867,1733221833096,-1169.27083333,0.00027944,7]
[344026868,1733221833105,-500.0,0.00027947,7]
[344026869,1733221833116,-500.0,0.00028214,7]
[344026870,1733221833127,-500.0,0.00028215,7]
[344026871,1733221833137,-1569.27,0.00028215,7]
[344026872,1733221833148,-500.0,0.00028215,7]
[344026873,1733221833158,-500.0,0.00028215,7]
[344026874,1733221833168,-500.0,0.00028215,7]
[344026875,1733221833178,-500.0,0.00028216,7]
[344026876,1733221833189,-500.0,0.00028216,7]
[344026877,1733221833199,-500.0,0.00028218,7]
[344026878,1733221833210,-500.0,0.00028218,7]
[344026879,1733221833219,-500.0,0.00028221,7]
[344026880,1733221833230,-500.0,0.00028488,7]
[344026881,1733221833241,-500.0,0.00028489,7]
[344026882,1733221833251,-1569.27,0.00028489,7]
[344026883,1733221833261,-500.0,0.00028489,7]
[344026884,1733221833271,-500.0,0.00028489,7]
[344026885,1733221833282,-1169.27083333,0.00028489,7]
[344026886,1733221833292,-500.0,0.00028489,7]
[344026887,1733221833302,-500.0,0.0002849,7]
[344026888,1733221833313,-500.0,0.0002849,7]
[344026889,1733221833323,-500.0,0.00028492,7]
[344026890,1733221833334,-500.0,0.00028492,7]
[344026891,1733221833347,-500.0,0.00028495,7]
[344026892,1733221833357,-335.299573,0.00028633,2]
[344026893,1733221833367,-500.0,0.00028762,7]
[344026894,1733221833377,-500.0,0.00028763,7]
[344026895,1733221833387,-1569.27,0.00028763,7]
[344026896,1733221833398,-500.0,0.00028763,7]
[344026897,1733221833408,-500.0,0.00028763,7]
[344026898,1733221833418,-500.0,0.00028763,7]
[344026899,1733221833428,-500.0,0.00028764,7]
[344026900,1733221833438,-541.75149005,0.00028764,7]
[344026901,1733221833448,-500.0,0.00028766,7]
[344026902,1733221833458,-500.0,0.00028766,7]
[344026903,1733221833468,-500.0,0.00028769,7]
[344026904,1733221833478,-742.0,0.000288,2]
[344026905,1733221833489,-335.299573,0.0002899,2]
[344026906,1733221833500,-500.0,0.00029036,7]
[344026907,1733221833511,-500.0,0.00029037,7]
[344026908,1733221833522,-1569.27,0.00029037,7]
[344026909,1733221833532,-363.31500711,0.00029037,7]
[344026910,1733221833544,-480.18175321,0.00029037,7]
[344026911,1733221833562,-500.0,0.00029037,7]
[344026912,1733221833573,-497.65126474,0.00029038,7]
[344026943,1733221838388,-2.34873526,0.00029038,7]
[344026945,1733221838398,-500.0,0.0002904,7]
[344026947,1733221838407,-525.31246978,0.0002904,7]
[344026949,1733221838416,-500.0,0.00029043,7]
[344026950,1733221838426,-500.0,0.0002931,7]
[344026951,1733221838436,-500.0,0.00029311,7]
[344026953,1733221838446,-1569.27,0.00029311,7]
[344026955,1733221838455,-500.0,0.00029311,7]
[344026956,1733221838465,-500.0,0.00029312,7]
[344026958,1733221838475,-500.0,0.00029314,7]
[344026960,1733221838485,-500.0,0.00029317,7]
[344026961,1733221838494,-587.0,0.00029339,2]
[344026962,1733221838504,-335.299573,0.00029348,2]
[344026963,1733221838514,-10462.29763637,0.000295,14]
[344026964,1733221838523,-500.0,0.00029584,7]
[344026965,1733221838533,-500.0,0.00029585,7]
[344026966,1733221838543,-1569.27,0.00029585,7]
[344026967,1733221838553,-500.0,0.00029585,7]
[344026968,1733221838562,-500.0,0.00029586,7]
[344026969,1733221838572,-500.0,0.00029588,7]
[344026970,1733221838582,-272.39536189,0.00029591,7]
[344026971,1733221838592,-335.299573,0.00029706,2]
[344026972,1733221838601,-461.95,0.0002978,120]
[344026973,1733221838611,-152.77,0.000298,31]
[344026974,1733221838621,-152.77,0.000298,31]
[344026975,1733221838631,-152.77,0.000298,31]
[344026976,1733221838640,-152.77,0.000298,31]
[344026977,1733221838650,-152.77,0.000298,31]
[344026978,1733221838659,-152.77,0.000298,31]
[344026979,1733221838668,-152.77,0.000298,31]
[344026980,1733221838680,-152.77,0.000298,31]
[344026981,1733221838690,-152.77,0.000298,31]
[344026982,1733221838700,-152.77,0.000298,31]
[344026983,1733221838709,-153.0,0.00029836,30]
[344026984,1733221838719,-153.0,0.00029836,30]
[344026985,1733221838728,-153.0,0.00029836,30]
[344026986,1733221838738,-153.0,0.00029836,30]
[344026987,1733221838748,-153.0,0.00029836,30]
[344026988,1733221838757,-500.0,0.00029858,7]
[344026989,1733221838767,-500.0,0.00029859,7]
[344026990,1733221838776,-1569.27,0.00029859,7]
[344026991,1733221838785,-500.0,0.00029859,7]
[344026992,1733221838796,-500.0,0.0002986,7]
[344026993,1733221838805,-500.0,0.00029862,7]
[344026994,1733221838815,-6666.0,0.000299,2]
[344026995,1733221838824,-302.58,0.00029963,3]
[344026996,1733221838833,-321.1719948,0.00029973,30]
[344026997,1733221838845,-213.1484039,0.00029973,30]
[344026998,1733221838854,-373.9491724,0.00029973,30]
[344026999,1733221838863,-305.3460728,0.00029973,30]
[344027000,1733221838872,-213.1484039,0.00029973,30]
[344027001,1733221838882,-213.1484039,0.00029973,30]
[344027002,1733221838892,-213.1484039,0.00029973,30]
[344027003,1733221838901,-305.3460728,0.00029973,30]
[344027004,1733221838911,-213.1484039,0.00029973,30]
[344027005,1733221838921,-333.5948436,0.00029973,30]
[344027006,1733221838930,-28092.28865987,0.0002999,2]
[344027007,1733221838939,-1712.09,0.0003,20]
[344027008,1733221838949,-466.0,0.0003,2]
[344027009,1733221838958,-800.9177077,0.0003,2]
[344027010,1733221838970,-1500.0,0.0003,2]
[344027011,1733221838986,-1024.69101681,0.0003,7]
[344027012,1733221838996,-167.94226634,0.0003,2]
[344027013,1733221839006,-412.79238942,0.0003,10]
[344027014,1733221839017,-8003.51391796,0.0003,3]
[344027015,1733221839026,-192.0,0.0003,2]
[344027016,1733221839037,-335.299573,0.00030064,2]
[344027017,1733221839047,-889.87,0.00030123,10]
[344027018,1733221839056,-581.85469763,0.00030132,7]
[344027019,1733221839065,-500.0,0.00030133,7]
[344027020,1733221839074,-1569.27,0.00030133,7]
[344027021,1733221839083,-500.0,0.00030133,7]
[344027022,1733221839095,-500.0,0.00030134,7]
[344027023,1733221839104,-500.0,0.00030135,2]
[344027024,1733221839113,-500.0,0.00030135,2]
[344027025,1733221839122,-500.0,0.00030135,2]
[344027026,1733221839132,-500.0,0.00030135,2]
[344027027,1733221839141,-195.50055802,0.00030135,2]
[344027028,1733221839151,-309.46292235,0.00030135,2]
[344027029,1733221839160,-500.0,0.00030135,2]
[344027030,1733221839169,-500.0,0.00030135,2]
[344027031,1733221839178,-500.0,0.00030135,2]
[344027032,1733221839187,-500.0,0.00030135,2]
[344027033,1733221839197,-500.0,0.00030135,2]
[344027034,1733221839206,-500.0,0.00030136,7]
[344027035,1733221839215,-192.530621,0.00030137,120]
[344027036,1733221839225,-500.0,0.00030157,5]
[344027037,1733221839234,-389.6,0.00030227,30]
[344027038,1733221839243,-17574.41252179,0.000303,10]
[344027039,1733221839252,-500.0,0.00030407,7]
[344027040,1733221839262,-1569.27,0.00030407,7]
[344027041,1733221839271,-261.30172238,0.00030407,7]
[344027042,1733221839280,-500.0,0.00030408,7]
[344027043,1733221839289,-500.0,0.0003041,7]
[344027044,1733221839298,-466.0,0.00030411,2]
[344027045,1733221839308,-3760.75694944,0.00030425,2]
[344027046,1733221839317,-3200.0,0.0003043,2]
[344027047,1733221839327,-4461.30595693,0.00030467,7]
[344027048,1733221839336,-152.77,0.000306,31]
[344027049,1733221839348,-152.77,0.000306,31]
[344027050,1733221839358,-152.77,0.000306,31]
[344027051,1733221839368,-152.77,0.000306,31]
[344027052,1733221839377,-152.77,0.000306,31]
[344027053,1733221839386,-152.77,0.000306,31]
[344027054,1733221839396,-152.77,0.000306,31]
[344027055,1733221839405,-152.77,0.000306,31]
[344027056,1733221839415,-152.77,0.000306,31]
[344027057,1733221839424,-152.77,0.000306,31]
[344027058,1733221839433,-152.77,0.000306,31]
[344027059,1733221839442,-152.77,0.000306,31]
[344027060,1733221839452,-152.77,0.000306,31]
[344027061,1733221839461,-152.77,0.000306,31]
[344027062,1733221839471,-152.77,0.000306,31]
[344027063,1733221839481,-152.77,0.000306,31]
[344027064,1733221839491,-152.77,0.000306,31]
[344027065,1733221839502,-152.77,0.000306,31]
[344027066,1733221839511,-152.77,0.000306,31]
[344027067,1733221839521,-152.77,0.000306,31]
[344027068,1733221839531,-9413.34281785,0.00030666,21]
[344027069,1733221839541,-5963.58103113,0.00030667,2]
[344027070,1733221839551,-1447.24132898,0.00030667,2]
[344027071,1733221839560,-666.0,0.00030681,2]
[344027072,1733221839570,-500.0,0.00030681,7]
[344027073,1733221839580,-1569.27,0.00030681,7]
[344027074,1733221839589,-500.0,0.00030682,7]
[344027075,1733221839599,-177.36381581,0.00030684,7]
[344027076,1733221839608,-2000.0,0.000307,4]
[344027077,1733221839618,-2000.0,0.000307,4]
[344027078,1733221839627,-2000.0,0.000307,4]
[344027079,1733221839637,-151.0,0.000307,10]
[344027080,1733221839647,-151.0,0.000307,13]
[344027081,1733221839657,-151.0,0.000307,11]
[344027082,1733221839666,-257.23782228,0.000307,2]
[344027083,1733221839676,-151.0,0.00030766,7]
[344027084,1733221839685,-151.0,0.00030766,7]
[344027085,1733221839695,-185.333069,0.00030766,7]
[344027086,1733221839704,-151.0,0.00030766,7]
[344027087,1733221839714,-186.761242,0.00030766,7]
[344027088,1733221839724,-151.94246,0.00030766,7]
[344027089,1733221839734,-171.9836,0.00030766,7]
[344027090,1733221839744,-163.48180846,0.00030766,10]
[344027091,1733221839753,-153.799805,0.00030767,7]
[344027092,1733221839763,-165.000298,0.00030767,7]
[344027093,1733221839772,-151.0,0.00030767,7]
[344027094,1733221839782,-151.0,0.00030767,7]
[344027095,1733221839791,-151.0,0.00030767,7]
[344027096,1733221839800,-151.0,0.00030767,7]
[344027097,1733221839810,-151.0,0.00030767,7]
[344027098,1733221839819,-151.0,0.00030767,7]
[344027099,1733221839829,-151.0,0.00030767,7]
[344027100,1733221839838,-151.0,0.00030767,7]
[344027101,1733221839847,-151.0,0.00030767,7]
[344027102,1733221839857,-288.408685,0.00030767,7]
[344027103,1733221839865,-152.126907,0.00030767,7]
[344027105,1733221839874,-180.517744,0.00030767,7]
[344027106,1733221839883,-180.517744,0.00030767,7]
[344027107,1733221839893,-180.517744,0.00030767,7]
[344027108,1733221839903,-180.517744,0.00030767,7]
[344027109,1733221839912,-180.517744,0.00030767,7]
[344027110,1733221840000,-180.517744,0.00030767,7]
[344027111,1733221840011,-180.517744,0.00030767,7]
[344027112,1733221840021,-180.517744,0.00030767,7]
[344027113,1733221840030,-180.517744,0.00030767,7]
[344027114,1733221840039,-180.517744,0.00030767,7]
[344027115,1733221840050,-180.517744,0.00030767,7]
[344027116,1733221840059,-180.517744,0.00030767,7]
[344027117,1733221840069,-180.517744,0.00030767,7]
[344027119,1733221840078,-180.517744,0.00030767,7]
[344027120,1733221840089,-670.521882,0.00030767,7]
[344027121,1733221840098,-670.521882,0.00030767,7]
[344027122,1733221840107,-670.521882,0.00030767,7]
[344027124,1733221840117,-670.521882,0.00030767,7]
[344027125,1733221840126,-670.521882,0.00030767,7]
[344027126,1733221840135,-670.521882,0.00030767,7]
[344027127,1733221840145,-670.521882,0.00030767,7]
[344027128,1733221840154,-670.521882,0.00030767,7]
[344027129,1733221840167,-670.521882,0.00030767,7]
[344027130,1733221840177,-670.521882,0.00030767,7]
[344027131,1733221840186,-670.521882,0.00030767,7]
[344027132,1733221840196,-670.521882,0.00030767,7]
[344027133,1733221840205,-670.521882,0.00030767,7]
[344027134,1733221840215,-670.521882,0.00030767,7]
[344027135,1733221840224,-151.0,0.00030767,7]
[344027136,1733221840233,-153.860128,0.00030767,7]
[344027137,1733221840242,-151.0,0.00030767,7]
[344027138,1733221840251,-151.0,0.00030767,7]
[344027139,1733221840260,-151.0,0.00030767,7]
[344027140,1733221840270,-151.0,0.00030767,7]
[344027141,1733221840280,-151.0,0.00030767,7]
[344027142,1733221840290,-151.0,0.00030767,7]
[344027143,1733221840299,-151.0,0.00030767,7]
[344027144,1733221840309,-151.0,0.00030767,7]
[344027145,1733221840321,-151.0,0.00030767,7]
[344027146,1733221840331,-151.0,0.00030767,7]
[344027147,1733221840342,-151.0,0.00030767,7]
[344027148,1733221840352,-151.0,0.00030767,7]
[344027149,1733221840362,-151.0,0.00030767,7]
[344027150,1733221840372,-166.831874,0.00030767,7]
[344027151,1733221840382,-151.0,0.00030767,7]
[344027152,1733221840391,-151.0,0.00030767,7]
[344027153,1733221840400,-151.0,0.00030767,7]
[344027154,1733221840411,-151.0,0.00030767,7]
[344027155,1733221840421,-151.0,0.00030767,7]
[344027156,1733221840432,-208.229092,0.00030767,7]
[344027157,1733221840442,-151.0,0.00030767,7]
[344027158,1733221840452,-151.0,0.00030767,7]
[344027159,1733221840463,-171.52230487,0.00030767,2]
[344027160,1733221840472,-85450.78659274,0.00030767,2]
[344027161,1733221840482,-825717.92594796,0.00030767,10]
[344027185,1733221843264,-256583.92470091,0.00030767,10]
[344027186,1733221843275,-2579.97130145,0.00030767,10]
[344027187,1733221843301,-1100.62651095,0.00030767,10]
[344027188,1733221843312,-41994.57131204,0.00030767,10]
[344027189,1733221843324,-9862.94753699,0.00030767,10]
[344027208,1733221994381,178.910669,0.00013973,2]
[344027212,1733222303243,324.13,0.00026,60]
[344027214,1733222384430,-172.96659864,0.000198,2]
[344027215,1733222384452,-1169.27083333,0.0002,2]
[344027216,1733222384475,-567.431999,0.00025,2]
[344027219,1733222425230,1169.27083333,0.0002,2]
[344027220,1733222501867,1169.27083333,0.0002,2]
[344027225,1733222562757,150.0,0.00025,10]
[344027226,1733222580457,1169.27083333,0.0002,2]
[344027262,1733223032500,-1401.97985,0.00027543,2]
[344027264,1733223032512,-4089.558486,0.00027543,2]
[344027265,1733223032522,-300.0,0.00027665,2]
[344027266,1733223032532,-500.0,0.00027667,7]
[344027267,1733223032541,-500.0,0.00027941,7]
[344027268,1733223032554,-199.1725014,0.00028068,2]
[344027269,1733223032564,-177.904759,0.00028068,2]
[344027270,1733223032574,-177.36381581,0.00028215,7]
[344027271,1733223032583,-165.790203,0.00028263,2]
[344027272,1733223032593,-667.8,0.000285,2]
[344027273,1733223032603,-143.34655167,0.00028633,2]
[344027291,1733223038486,-1169.27083333,0.00026646,2]
[344027292,1733223038496,-24.30323533,0.00028633,2]
[344027293,1733223038507,-312.7379187,0.00028877,30]
[344027294,1733223038517,-500.0,0.00029314,7]
[344027295,1733223038526,-500.0,0.00029314,7]
[344027296,1733223038535,-1169.27083333,0.00029584,7]
[344027297,1733223038545,-500.0,0.00029584,7]
[344027298,1733223038556,-500.0,0.00029588,7]
[344027299,1733223038565,-261.30172238,0.00029588,7]
[344027300,1733223038575,-980.79,0.00029799,7]
[344027301,1733223038584,-152.78,0.000298,31]
[344027302,1733223038593,-152.78,0.000298,31]
[344027303,1733223038603,-152.78,0.000298,31]
[344027304,1733223038612,-152.78,0.000298,31]
[344027305,1733223038622,-152.78,0.000298,31]
[344027306,1733223038631,-152.78,0.000298,31]
[344027307,1733223038641,-152.78,0.000298,31]
[344027309,1733223038650,-152.78,0.000298,31]
[344027310,1733223038659,-152.78,0.000298,31]
[344027311,1733223038668,-581.85469763,0.00029857,7]
[344027313,1733223038678,-500.0,0.00029858,7]
[344027314,1733223038687,-500.0,0.00029862,7]
[344027315,1733223038698,-420.0,0.00029888,2]
[344027316,1733223038707,-450.0,0.0003,2]
[344027317,1733223038717,-318.0,0.0003,2]
[344027318,1733223038726,-158.0,0.0003,2]
[344027319,1733223038735,-167.649787,0.00030064,2]
[344027320,1733223038745,-980.79,0.00030073,7]
[344027321,1733223038754,-500.0,0.00030132,7]
[344027322,1733223038763,-222.9613785,0.00030136,7]
[344027323,1733223038773,-500.0,0.00030136,7]
[344027324,1733223038782,-192.530621,0.00030137,120]
[344027326,1733223038791,-393.09,0.00030227,30]
[344027328,1733223038803,-980.79,0.00030347,7]
[344027329,1733223038812,-500.0,0.00030406,7]
[344027331,1733223038821,-500.0,0.0003041,7]
[344027332,1733223038831,-450.0,0.00030411,2]
[344027333,1733223038840,-587.17968893,0.00030453,2]
[344027334,1733223038854,-4461.30595693,0.00030467,7]
[344027335,1733223038863,-1169.27083333,0.00030467,7]
[344027336,1733223038873,-587.17968893,0.00030496,2]
[344027337,1733223038882,-587.17968893,0.00030539,2]
[344027338,1733223038892,-587.17968893,0.00030582,2]
[344027339,1733223038901,-152.78,0.000306,31]
[344027340,1733223038912,-152.78,0.000306,31]